bitfinex/quotes_ETHUSD_20241104
["timestamp","ask_amount","ask_price","bid_price","bid_amount"]
[1730761805442,1.74551596,2402.0,2401.9,4.16337]
[1730761805731,1.74551596,2402.1,2401.9,4.16337]
[1730761806227,1.74551596,2402.1,2401.8,4.16352]
[1730761806916,1.74551596,2402.1,2401.8,4.16346]
[1730761807117,1.74551596,2402.1,2401.9,4.16327]
[1730761807483,0.09600931,2402.0,2401.9,4.16327]
[1730761808185,0.09600931,2402.0,2401.8,4.16346]
[1730761809130,0.09600931,2402.0,2401.8,8.32687]
[1730761809424,0.09600931,2402.0,2401.9,4.16337]
[1730761810111,1.74551596,2402.2,2401.9,4.16337]
[1730761810634,0.09601635,2402.1,2401.9,4.16337]
[1730761810923,0.09601635,2402.1,2401.8,4.16341]
[1730761812091,1.84153231,2402.1,2401.8,4.16341]
[1730761812289,0.09601635,2402.1,2401.8,4.16341]
[1730761813111,0.09601635,2402.1,2401.8,0.908445]
[1730761813312,0.09601635,2402.1,2402.0,4.16319]
[1730761813798,1.74551596,2402.5,2402.2,4.16274]
[1730761814005,1.74551596,2402.5,2402.2,8.32549]
[1730761814208,1.74551596,2402.5,2402.2,4.16274]
[1730761815325,1.74551596,2402.5,2402.1,4.163]
[1730761815326,2.63315189,2402.5,2402.1,4.163]
[1730761815501,2.63315189,2402.5,2402.2,4.16283]
[1730761815706,2.63315189,2402.5,2402.2,8.32559]
[1730761816148,2.63315189,2402.5,2402.2,4.16276]
[1730761817008,2.63315189,2402.5,2402.1,4.16301]
[1730761817213,0.97643727,2402.4,2402.1,4.16301]
[1730761817515,2.63315189,2402.5,2402.2,4.1628]
[1730761818096,1.74551596,2402.5,2402.3,4.16254]
[1730761818245,1.74551596,2402.5,2402.4,4.1625]
[1730761818751,1.74551596,2402.6,2402.4,4.1625]
[1730761819043,1.74551596,2402.6,2402.5,4.16233]
[1730761819247,1.74551596,2402.6,2402.4,4.16246]
[1730761819454,1.74551596,2402.6,2402.4,8.32488]
[1730761819828,1.74551596,2402.6,2402.4,4.16242]
[1730761820053,1.74551596,2402.7,2402.6,4.16215]
[1730761820263,1.74551596,2402.8,2402.6,4.16215]
[1730761820413,1.74551596,2402.7,2402.6,4.16215]
[1730761820613,1.74551596,2402.7,2402.5,4.16229]
[1730761822469,0.09668495,2402.6,2402.5,4.16229]
[1730761823366,0.09668495,2402.6,2401.5,0.7838]
[1730761823367,0.8192,2402.5,2401.5,0.7838]
[1730761823578,1.74553561,2402.3,2401.9,4.16323]
[1730761823869,1.84222056,2402.2,2401.9,4.16323]
[1730761824076,1.74553561,2402.1,2401.9,4.16323]
[1730761824228,1.74553561,2402.2,2401.9,4.16323]
[1730761824423,0.09668495,2402.1,2401.9,8.32651]
[1730761824839,0.09668495,2402.1,2402.0,4.16319]
[1730761825249,0.09668495,2402.1,2401.9,4.16323]
[1730761825461,3.0558565,2402.1,2401.8,4.16353]
[1730761825764,3.0558565,2402.1,2401.5,0.7838]
[1730761825765,2.65342056,2402.1,2401.9,4.16335]
[1730761825932,2.65342056,2402.1,2402.0,4.16319]
[1730761826374,1.84222056,2402.1,2402.0,4.16319]
[1730761826974,0.09668495,2402.1,2402.0,4.16319]
[1730761827463,1.84222056,2402.1,2402.0,4.16319]
[1730761827841,0.09668495,2402.1,2402.0,4.16319]
[1730761828041,1.84222056,2402.1,2402.0,4.16319]
[1730761828349,0.09668495,2402.1,2402.0,4.16319]
[1730761829385,0.09668495,2402.1,2402.0,5.15665924]
[1730761829683,3.0,2402.6,2402.0,5.15665924]
[1730761829684,1.74553561,2402.5,2402.4,4.1625]
[1730761830444,1.74553561,2402.6,2402.4,4.1625]
[1730761831656,1.74553561,2402.7,2402.5,4.16233]
[1730761831884,2.51603561,2402.8,2402.5,4.16233]
[1730761832089,1.74553561,2402.7,2402.5,4.16233]
[1730761832589,1.74553561,2402.8,2402.7,4.16198]
[1730761832791,1.74553561,2403.0,2402.9,4.16163]
[1730761832950,1.74553561,2403.1,2402.9,4.16163]
[1730761833888,1.74553561,2403.1,2402.8,4.16172]
[1730761834106,1.74553561,2403.1,2402.8,4.16171]
[1730761834254,1.74553561,2403.1,2402.8,8.3234]
[1730761834589,1.74553561,2403.1,2402.9,4.16161]
[1730761835305,1.74553561,2403.1,2402.8,4.16169]
[1730761835454,1.74553561,2403.1,2402.9,4.1616]
[1730761836294,1.74553561,2403.2,2402.9,4.1616]
[1730761836662,1.74553561,2403.1,2402.9,4.1616]
[1730761836913,1.74553561,2403.1,2402.5,1.238688]
[1730761836914,2.56963561,2403.0,2402.5,4.16224]
[1730761837112,1.74553561,2402.9,2402.6,4.16207]
[1730761837607,0.13903918,2402.8,2402.6,4.16207]
[1730761837963,2.56963561,2403.0,2402.7,4.16198]
[1730761838589,2.56963561,2403.0,2402.4,4.94056]
[1730761838788,1.74553561,2403.2,2403.0,4.16137]
[1730761839004,1.74553561,2403.2,2403.0,4.16143]
[1730761839792,1.74553561,2403.3,2403.0,4.16143]
[1730761840305,1.74553561,2403.3,2403.1,4.1612]
[1730761841598,1.74553561,2403.3,2402.8,0.821]
[1730761841799,1.74553561,2403.4,2403.3,4.16094]
[1730761842012,2.18013053,2403.5,2403.3,4.16094]
[1730761842013,1.74553561,2403.5,2403.3,4.16094]
[1730761842180,2.94553053,2403.6,2403.2,4.16111]
[1730761842181,2.51093561,2403.6,2403.2,4.16111]
[1730761842507,2.51093561,2403.6,2403.2,8.32214]
[1730761842711,2.51093561,2403.6,2403.3,4.16085]
[1730761843214,0.7654,2403.6,2403.3,4.16085]
[1730761843380,0.7654,2403.6,2403.4,4.16075]
[1730761843704,1.74553561,2403.8,2403.4,4.16075]
[1730761844123,4.16027,2403.7,2403.3,4.16085]
[1730761844411,4.16027,2403.7,2403.0,4.16144]
[1730761844412,0.7576,2403.6,2403.0,4.16144]
[1730761844610,4.1606,2403.5,2403.0,4.16144]
[1730761844793,5.90613561,2403.5,2403.0,4.16138]
[1730761845010,7.20654922,2403.5,2403.0,8.32275]
[1730761845900,5.46101361,2403.5,2403.0,8.32275]
[1730761846083,5.46101361,2403.5,2402.7,0.7662]
[1730761846084,4.16093,2403.4,2402.9,4.16162]
[1730761846421,3.04594922,2403.5,2403.1,4.16121]
[1730761846627,5.46103361,2403.5,2403.1,4.16121]
[1730761847078,1.30041361,2403.5,2403.1,4.16121]
[1730761847278,2.50313561,2403.6,2403.2,4.16102]
[1730761847631,7.91816,2403.6,2403.1,4.16121]
[1730761848179,7.91816,2403.6,2403.2,4.16111]
[1730761848714,7.91816,2403.6,2403.1,4.16121]
[1730761850007,4.16064,2403.5,2403.1,4.16121]
[1730761850236,5.54307356,2403.5,2403.0,4.16145]
[1730761850390,5.54307356,2403.5,2403.1,4.16128]
[1730761850710,4.1608,2403.4,2403.0,4.16145]
[1730761851398,5.54307356,2403.5,2403.1,4.16124]
[1730761851602,0.7576,2403.6,2403.3,4.16078]
[1730761851804,1.74553561,2403.8,2403.1,0.8305]
[1730761852012,1.74553561,2403.8,2403.4,8.32136]
[1730761852324,0.13984113,2403.7,2403.4,4.16067]
[1730761852825,1.74553561,2403.8,2403.4,8.32134]
[1730761853032,0.13984113,2403.6,2403.5,8.22260999]
[1730761853322,1.74553561,2404.2,2403.5,4.89294999]
[1730761853630,2.17038667,2404.4,2403.5,4.89294999]
[1730761853631,1.74553561,2404.4,2404.1,4.15947]
[1730761853921,2.63668529,2404.4,2404.0,4.15971]
[1730761854124,0.89114968,2404.4,2404.1,4.15947]
[1730761854434,2.57863561,2404.5,2404.1,8.31500928]
[1730761854435,0.8331,2404.5,2404.1,8.31500928]
[1730761854725,6.69885561,2404.7,2404.2,4.15927]
[1730761855227,4.95332,2404.7,2404.2,4.15927]
[1730761855530,4.15879,2404.6,2404.1,4.15552928]
[1730761855713,4.15879,2404.6,2404.1,8.31498928]
[1730761856037,5.24455456,2404.6,2404.1,8.31498928]
[1730761856533,0.7948,2404.7,2404.4,4.15895]
[1730761856701,0.7948,2404.7,2404.1,4.14522896]
[1730761857030,0.7948,2404.7,2404.3,4.1592]
[1730761857612,4.95332,2404.7,2404.2,4.15923]
[1730761858029,4.95332,2404.7,2404.2,8.31852]
[1730761858204,5.864499,2404.7,2404.2,8.31852]
[1730761858732,5.864499,2404.7,2404.1,4.06204999]
[1730761859026,4.15878,2404.6,2404.1,4.15955]
[1730761860631,4.15878,2404.6,2404.0,4.15959]
[1730761860632,1.705979,2404.7,2404.2,4.15936]
[1730761860940,0.7948,2404.7,2404.3,4.15921]
[1730761861091,0.7948,2404.7,2404.4,4.15902]
[1730761861293,3.7775,2404.9,2404.5,4.15884]
[1730761861486,4.571064,2404.9,2404.5,4.15884]
[1730761862011,0.7775,2404.9,2404.6,4.15861]
[1730761862223,0.7886,2405.1,2404.7,4.15841]
[1730761863122,0.7886,2405.1,2404.6,4.15859]
[1730761863337,4.15802,2405.0,2404.6,4.15859]
[1730761863634,4.15819,2404.9,2404.4,8.31786]
[1730761863841,5.368456,2405.0,2404.4,4.15892]
[1730761864045,5.368456,2405.0,2404.5,4.15876]
[1730761864227,5.368456,2405.0,2404.6,4.15869]
[1730761864228,1.210436,2405.0,2404.6,4.15869]
[1730761864416,1.210436,2405.0,2404.6,4.15854]
[1730761864621,1.210436,2405.0,2404.7,4.15849]
[1730761864929,4.2168401,2405.4,2404.7,4.14521673]
[1730761865118,4.2168401,2405.4,2404.8,4.15834]
[1730761865119,4.96703,2405.3,2404.8,4.15834]
[1730761865314,4.15783,2405.1,2404.7,4.15841]
[1730761865614,4.96698,2405.3,2404.8,4.15833]
[1730761866031,4.96698,2405.3,2404.4,4.86974999]
[1730761866342,4.15775,2405.2,2404.7,8.31694]
[1730761866515,5.46961901,2405.3,2404.7,8.31694]
[1730761866516,5.46961901,2405.3,2404.8,4.15823]
[1730761867552,0.1417879,2405.2,2405.0,4.15791]
[1730761867773,0.1417879,2405.2,2404.2,4.97137]
[1730761867774,4.91913,2405.1,2404.2,4.97137]
[1730761867920,7.15816,2405.0,2404.3,4.15908]
[1730761868116,0.14174754,2404.9,2404.4,4.1589]
[1730761868319,0.14174754,2404.9,2404.6,4.15856]
[1730761868562,0.7612,2405.1,2404.7,4.15845]
[1730761868750,0.14174754,2404.8,2404.6,4.15856]
[1730761869058,0.7612,2405.1,2404.7,4.15852]
[1730761869228,0.14174754,2404.7,2404.6,8.31716]
[1730761869433,4.9191,2405.1,2404.6,9.148876]
[1730761869624,0.14174754,2404.7,2404.6,4.990276]
[1730761869828,0.7612,2405.1,2404.7,4.15835]
[1730761870149,0.7612,2405.1,2404.8,4.15833]
[1730761870465,4.2168301,2405.4,2405.1,4.15773]
[1730761870466,0.8548101,2405.4,2405.1,4.15773]
[1730761870699,0.8548101,2405.4,2405.1,4.15783]
[1730761870700,0.0594101,2405.4,2405.1,4.15783]
[1730761870958,0.0594101,2405.4,2405.2,4.15763]
[1730761871321,0.0594101,2405.4,2405.3,4.24062577]
[1730761871517,0.0594101,2405.4,2405.3,4.15748]
[1730761871765,0.0594101,2405.4,2405.3,5.02631808]
[1730761871962,0.0594101,2405.4,2405.3,5.02631527]
[1730761872257,0.0594101,2405.4,2405.3,9.4746921]
[1730761872463,0.0594101,2405.4,2405.3,9.39155683]
[1730761872761,4.2147701,2406.6,2406.1,4.15604]
[1730761872762,5.0186701,2406.6,2406.1,4.15604]
[1730761873119,9.1739701,2406.6,2406.1,4.15604]
[1730761873530,5.0186401,2406.6,2406.1,8.31203]
[1730761873752,5.0186401,2406.6,2406.1,8.31199]
[1730761873954,0.8633101,2406.6,2406.2,4.15583]
[1730761874494,0.8633101,2406.6,2406.1,8.31194]
[1730761874676,0.0594101,2406.6,2406.2,4.987004]
[1730761874832,0.7869,2406.3,2405.7,4.95954]
[1730761875033,0.7869,2406.3,2405.8,4.15652]
[1730761875433,0.13766758,2406.2,2405.8,4.15652]
[1730761875636,0.7869,2406.3,2405.8,4.15652]
[1730761875846,0.13766758,2406.1,2405.9,4.15641]
[1730761876151,0.13766758,2406.0,2405.9,4.15641]
[1730761876352,0.7869,2406.3,2405.8,0.911606]
[1730761876553,0.13766758,2406.2,2405.8,0.911606]
[1730761876762,0.7869,2406.3,2405.9,0.08311848]
[1730761876971,0.13766758,2406.1,2405.8,5.068136]
[1730761877179,4.94266,2406.3,2405.8,5.068136]
[1730761877379,0.13766758,2406.0,2405.8,5.068136]
[1730761877681,4.94266,2406.3,2405.8,5.068136]
[1730761877855,0.13766758,2405.9,2405.8,4.15653]
[1730761878057,0.7869,2406.3,2405.8,4.15653]
[1730761878296,4.15562,2406.4,2405.9,4.15644]
[1730761879307,4.15562,2406.4,2405.9,4.23955853]
[1730761879489,4.15562,2406.4,2405.8,8.31306]
[1730761879685,4.15562,2406.4,2405.8,9.224656]
[1730761880089,4.9719,2406.5,2405.9,4.23943854]
[1730761880567,4.15559,2406.4,2405.9,4.23943854]
[1730761880767,4.15559,2406.4,2405.8,9.224646]
[1730761880997,4.15559,2406.4,2405.8,5.068116]
[1730761881395,4.15575,2406.3,2405.8,5.068116]
[1730761881605,4.15575,2406.3,2405.8,4.15659]
[1730761882179,4.15595,2406.2,2405.8,4.15659]
[1730761882403,0.7784,2405.7,2405.1,2.036573]
[1730761882681,0.7784,2405.4,2404.7,0.7988]
[1730761882877,4.15748,2405.3,2404.8,0.486085]
[1730761883117,4.29514758,2405.3,2404.8,0.486085]
[1730761883289,0.13766758,2405.3,2404.8,0.486085]
[1730761883490,4.29517758,2405.3,2404.9,0.5443375]
[1730761883971,4.29517758,2405.3,2404.9,4.7024975]
[1730761884171,4.29517758,2405.3,2404.9,0.5443375]
[1730761884412,4.15768,2405.2,2404.7,4.95729]
[1730761884615,4.15768,2405.2,2404.7,4.95721]
[1730761885121,4.15768,2405.2,2404.5,4.15875]
[1730761885122,4.15809,2405.0,2404.5,4.15875]
[1730761885277,0.793,2404.9,2404.4,0.81]
[1730761885480,4.15849,2404.8,2404.2,4.15929]
[1730761885785,4.15861,2404.7,2404.2,5.478336]
[1730761886103,4.15861,2404.7,2404.2,4.15925]
[1730761886477,0.13766758,2404.6,2404.2,4.15925]
[1730761886680,0.13766758,2404.6,2404.4,4.15896]
[1730761887118,4.15829,2404.9,2404.4,4.15896]
[1730761887324,0.13775911,2404.5,2404.4,4.15896]
[1730761887500,4.15829,2404.9,2404.4,5.069161]
[1730761887701,0.13775911,2404.5,2404.2,4.94305]
[1730761887902,4.15846,2404.8,2404.3,4.15911]
[1730761887903,4.94726,2404.8,2404.3,4.15911]
[1730761888117,0.13775911,2404.4,2404.3,4.15911]
[1730761888419,0.7888,2404.8,2404.4,4.15899]
[1730761888782,0.7888,2404.8,2404.5,4.15878]
[1730761889179,0.7888,2404.8,2404.4,4.15899]
[1730761889374,4.94724,2404.8,2404.3,4.1592]
[1730761889582,4.94724,2404.8,2404.2,4.94308]
[1730761889816,4.15859,2404.7,2404.2,4.94308]
[1730761889979,4.94724,2404.8,2404.2,4.94301]
[1730761890179,7.15767,2405.2,2404.7,4.15835]
[1730761890180,4.15774,2405.2,2404.7,4.15835]
[1730761890387,4.15774,2405.2,2404.5,4.15878]
[1730761890388,4.15783,2405.1,2404.5,8.31748]
[1730761890686,4.15809,2405.0,2404.5,4.1587]
[1730761891003,4.15809,2405.0,2404.5,4.990477]
[1730761891194,4.15809,2405.0,2404.5,4.1587]
[1730761891810,4.15783,2405.1,2404.6,4.15865]
[1730761891992,4.94803,2405.2,2404.5,4.1587]
[1730761892200,9.10578,2405.2,2404.6,4.15855]
[1730761892488,9.10578,2405.2,2404.3,4.15907]
[1730761892489,4.15827,2404.9,2404.3,4.15907]
[1730761892689,4.15827,2404.9,2404.3,4.15921]
[1730761892690,0.8333,2404.8,2404.3,4.15921]
[1730761893456,0.8333,2404.8,2404.4,4.15901]
[1730761894456,0.8333,2404.8,2404.3,4.15921]
[1730761894457,4.15879,2404.6,2404.1,4.15953]
[1730761894659,4.15879,2404.6,2404.1,4.656023]
[1730761895419,9.15026,2404.8,2404.1,0.496583]
[1730761895618,6.29020143,2405.8,2404.5,4.15883]
[1730761895915,4.15808,2405.0,2404.5,4.15877]
[1730761896118,0.826,2404.9,2404.5,4.15877]
[1730761896629,0.826,2404.9,2404.6,4.15865]
[1730761896952,0.826,2404.9,2404.5,4.15877]
[1730761897160,0.826,2405.1,2404.7,4.15842]
[1730761897365,0.13775911,2405.0,2404.8,4.15834]
[1730761897661,0.13775911,2405.0,2404.8,4.15824]
[1730761898720,7.96959,2405.4,2404.9,4.15817]
[1730761898921,4.96959,2405.4,2404.9,4.15817]
[1730761899518,4.96959,2405.4,2404.8,4.92014]
[1730761899519,0.8122,2405.4,2405.0,4.1579]
[1730761899752,4.96961,2405.4,2404.9,4.15817]
[1730761900555,4.1575,2405.3,2404.8,4.92014]
[1730761900721,4.1575,2405.3,2404.8,4.15824]
[1730761900940,4.15793,2405.1,2404.6,4.15856]
[1730761901176,0.7535,2405.0,2404.7,4.15849]
[1730761902677,0.7535,2405.0,2404.7,4.15844]
[1730761902845,0.7535,2405.0,2404.7,8.31687]
[1730761903173,0.7535,2405.0,2404.7,4.15843]
[1730761904275,4.91161,2405.0,2404.5,4.15876]
[1730761904582,4.15825,2404.9,2404.4,4.15902]
[1730761904954,1.244661,2405.0,2404.5,4.1587]
[1730761905161,3.0,2405.4,2405.0,4.15797]
[1730761905162,0.7539,2405.4,2405.0,4.15797]
[1730761906086,0.7539,2405.4,2405.1,4.15779]
[1730761906284,0.7539,2405.4,2405.0,4.15797]
[1730761906487,4.15749,2405.3,2404.9,4.15816]
[1730761906644,0.7833,2405.0,2404.7,4.15846]
[1730761907043,0.7833,2405.0,2404.6,4.15859]
[1730761907442,0.7833,2405.0,2404.5,4.15874]
[1730761907653,0.7833,2405.0,2404.7,4.15848]
[1730761908180,0.7833,2405.0,2404.5,4.15876]
[1730761908387,5.435416,2405.0,2404.5,8.31753]
[1730761909194,4.15826,2404.9,2404.5,4.15876]
[1730761909499,5.435426,2405.0,2404.5,4.15876]
[1730761910158,5.435426,2405.0,2404.5,8.31753]
[1730761911056,5.435426,2405.0,2404.6,4.15869]
[1730761912066,0.8435426,2404.9,2404.6,4.15869]
[1730761912501,0.13791399,2404.8,2404.5,4.15878]
[1730761912974,5.435426,2405.0,2404.5,4.15878]
[1730761913175,0.13791399,2404.9,2404.5,4.15878]
[1730761913691,0.13791399,2404.9,2404.5,4.15877]
[1730761913996,0.13791399,2404.9,2404.3,4.15909]
[1730761913997,0.8192,2404.7,2404.3,4.15909]
[1730761914356,0.13791399,2404.6,2404.4,4.15903]
[1730761916704,4.29668399,2404.6,2404.1,4.15943]
[1730761917006,4.29668399,2404.6,2403.8,4.54653994]
[1730761917007,4.15929,2404.3,2403.8,4.54653994]
[1730761917153,0.8215,2404.1,2403.7,4.16024]
[1730761917496,0.13768165,2404.0,2403.7,4.16024]
[1730761917793,0.13768165,2404.0,2403.7,8.3204]
[1730761917971,0.13768165,2404.0,2403.8,4.15999]
[1730761918164,0.13768165,2404.0,2403.7,4.16025]
[1730761919497,0.13768165,2404.0,2403.8,4.15996]
[1730761920715,0.13768165,2404.0,2403.9,4.1599]
[1730761921515,4.15911,2404.4,2403.9,4.1599]
[1730761921714,0.13768165,2404.0,2403.9,4.1599]
[1730761921914,4.15929,2404.3,2403.6,4.16032]
[1730761922202,4.94956,2404.2,2403.7,4.16009]
[1730761922365,0.13768165,2404.1,2403.8,4.15998]
[1730761923771,0.13768165,2404.1,2403.7,4.16009]
[1730761924102,0.13768165,2404.1,2403.8,4.16007]
[1730761924900,0.13768165,2404.1,2403.8,4.15613681]
[1730761925708,0.13768165,2404.1,2403.5,0.803]
[1730761925709,0.13768165,2404.1,2403.9,4.15986]
[1730761925875,0.13768165,2404.1,2404.0,4.15973]
[1730761926281,0.13768165,2404.1,2403.9,4.1599]
[1730761929412,0.13768165,2404.1,2403.5,0.803]
[1730761929710,0.13768165,2404.1,2403.2,4.9888]
[1730761929711,0.7781,2403.7,2403.2,4.9888]
[1730761929912,0.7781,2403.7,2403.3,4.16086]
[1730761930077,0.13652656,2403.6,2403.3,4.16086]
[1730761932398,0.13652656,2403.6,2403.3,8.32172]
[1730761932584,0.13652656,2403.6,2403.3,4.16086]
[1730761932786,0.13652656,2403.6,2403.3,8.32172]
[1730761933089,4.98554,2404.0,2403.5,4.16059]
[1730761933289,4.98554,2404.0,2403.4,4.96586]
[1730761933488,4.98554,2404.0,2403.6,4.1604]
[1730761934031,0.8257,2404.0,2403.7,4.16016]
[1730761934329,4.15952,2404.2,2403.9,4.15974]
[1730761934330,0.7668,2404.2,2403.9,4.15974]
[1730761934509,4.92594,2404.4,2404.0,4.15963]
[1730761934711,6.20113066,2404.4,2404.0,4.15963]
[1730761935243,4.92551,2404.6,2404.2,4.15921]
[1730761935548,0.7668,2404.6,2404.2,4.15921]
[1730761935829,0.7668,2404.6,2404.2,4.15926]
[1730761935983,0.7668,2404.6,2404.2,8.31855]
[1730761936186,0.7668,2404.6,2404.3,4.1592]
[1730761937212,0.7668,2404.6,2404.2,4.15926]
[1730761937429,0.809,2404.8,2404.5,4.15877]
[1730761937611,2.55453561,2405.0,2404.6,4.15852]
[1730761937790,0.809,2405.0,2404.6,4.15852]
[1730761937986,0.809,2405.0,2404.6,8.31712]
[1730761938192,0.809,2405.0,2404.6,4.15852]
[1730761938433,0.809,2405.0,2404.7,4.1585]
[1730761940934,0.809,2405.0,2404.6,4.15868]
[1730761942407,0.13736477,2404.9,2404.2,9.43424727]
[1730761942610,0.13736477,2404.9,2404.7,4.1585]
[1730761943749,0.13736477,2404.9,2404.8,4.15834]
[1730761943903,0.13736477,2404.9,2404.7,4.15842]
[1730761945709,4.15896,2404.5,2404.0,4.15961]
[1730761945911,0.7907,2404.4,2404.0,4.15961]
[1730761946207,0.92805069,2404.4,2404.0,4.15961]
[1730761946826,0.92805069,2404.4,2404.0,4.15973]
[1730761947027,0.92805069,2404.4,2404.1,4.15948]
[1730761947748,5.08718069,2404.4,2403.9,4.1599]
[1730761948109,9.24632069,2404.4,2403.9,4.1599]
[1730761948420,4.15933,2404.3,2403.8,4.15994]
[1730761948743,4.15933,2404.3,2403.6,4.16029]
[1730761948744,4.15976,2404.0,2403.6,4.16029]
[1730761948956,0.7778,2404.1,2403.6,4.16029]
[1730761949248,0.7778,2404.1,2403.8,4.16006]
[1730761949249,0.13699149,2404.0,2403.8,4.16006]
[1730761949449,0.13699149,2404.0,2403.8,4.15997]
[1730761951326,0.13699149,2404.0,2403.9,4.24309484]
[1730761951631,0.8161,2404.4,2403.9,0.91586648]
[1730761951840,0.8161,2404.4,2404.1,4.15948]
[1730761952655,0.8161,2404.4,2404.0,4.15973]
[1730761952960,0.8161,2404.4,2404.1,4.15955]
[1730761953762,0.8161,2404.4,2404.1,8.31898]
[1730761954057,0.8161,2404.4,2404.1,4.15943]
[1730761954275,0.13695627,2404.3,2404.2,4.24256299]
[1730761954437,0.13695627,2404.3,2404.2,5.02156299]
[1730761954638,2.52403561,2405.0,2404.7,4.15844]
[1730761954930,0.60686939,2404.9,2404.7,4.15843]
[1730761955134,0.13695627,2404.9,2404.6,4.15868]
[1730761955368,0.13695627,2404.9,2404.3,4.15911]
[1730761955538,4.15841,2404.8,2404.3,8.31823]
[1730761955743,5.90394561,2404.8,2404.3,4.15911]
[1730761955937,0.7972,2404.7,2404.3,4.15911]
[1730761956140,2.02009683,2404.7,2404.3,4.15911]
[1730761956463,2.02009683,2404.7,2404.3,8.31824]
[1730761956635,0.13695627,2404.7,2404.6,4.15869]
[1730761956835,0.13695627,2404.7,2404.5,4.15876]
[1730761957042,0.13695627,2404.7,2404.3,4.15908]
[1730761957043,4.15836,2404.8,2404.3,4.15908]
[1730761957252,0.13695627,2404.6,2404.3,4.15908]
[1730761957450,5.90389561,2404.8,2404.3,4.15908]
[1730761957764,0.13695627,2404.5,2404.4,4.15904]
[1730761957966,0.88745912,2404.7,2404.1,4.15941]
[1730761958166,0.13695627,2404.5,2404.3,4.15916]
[1730761958336,5.90389561,2404.8,2404.3,4.15916]
[1730761958878,5.90389561,2404.8,2404.2,4.15923]
[1730761958879,0.13695627,2404.7,2404.1,4.15939]
[1730761959085,0.8174,2404.6,2404.2,4.15928]
[1730761959443,0.13714644,2404.5,2404.2,4.15928]
[1730761961586,0.13714644,2404.5,2404.3,4.15907]
[1730761961882,0.90125057,2404.7,2404.5,4.15877]
[1730761962045,0.90125057,2404.7,2404.4,4.15904]
[1730761962046,0.34468862,2404.6,2404.4,4.15904]
[1730761963240,0.34468862,2404.6,2404.3,4.1592]
[1730761963445,0.34468862,2404.6,2404.2,4.15922]
[1730761963446,0.7608,2404.5,2404.2,4.15922]
[1730761963668,0.7608,2404.5,2404.4,4.15904]
[1730761963889,0.34468862,2404.6,2404.0,4.15973]
[1730761964188,0.7608,2404.7,2404.5,4.15885]
[1730761965584,0.7608,2404.7,2404.5,4.15490912]
[1730761966152,0.7608,2404.7,2404.4,4.15903]
[1730761966356,0.7608,2404.7,2404.5,4.15874]
[1730761966552,0.7608,2404.7,2404.6,4.15869]
[1730761966758,2.52393561,2404.9,2404.6,4.15869]
[1730761967067,2.99397333,2404.9,2404.6,4.15869]
[1730761967966,2.99397333,2404.9,2404.7,4.15849]
[1730761968362,1.24843772,2404.9,2404.7,4.15849]
[1730761969661,1.24843772,2404.9,2404.6,4.15869]
[1730761969975,1.24843772,2404.9,2404.6,4.1586]
[1730761970495,0.29939733,2404.8,2404.5,4.15881]
[1730761970798,1.24843772,2404.9,2404.5,4.15881]
[1730761970799,2.99397333,2404.9,2404.5,4.15881]
[1730761971905,1.24843772,2404.9,2404.5,4.15881]
[1730761972700,0.13744224,2404.8,2404.5,4.15881]
[1730761972895,0.13744224,2404.8,2404.7,4.15852]
[1730761973054,0.13744224,2404.8,2404.5,4.15884]
[1730761973898,0.13744224,2404.8,2403.9,4.05226127]
[1730761973899,0.13744224,2404.8,2404.6,4.15864]
[1730761974064,0.13744224,2404.8,2404.6,8.31721]
[1730761974264,0.8305,2405.0,2404.6,4.1586]
[1730761974489,0.13741407,2404.9,2404.6,4.1586]
[1730761978667,0.13741407,2404.9,2404.2,4.15935]
[1730761978668,4.29563407,2404.9,2404.2,0.7964]
[1730761978862,0.51261341,2404.8,2404.4,4.15902]
[1730761979069,0.13750562,2404.7,2404.4,4.15902]
[1730761979264,0.51261341,2404.8,2404.4,4.15902]
[1730761979567,0.13750562,2404.6,2404.4,8.31794]
[1730761979772,0.51261341,2404.8,2404.4,8.31794]
[1730761979991,0.13750562,2404.5,2404.4,4.15892]
[1730761980195,0.51261341,2404.8,2404.2,0.7964]
[1730761980407,0.7797,2404.3,2403.8,0.38575388]
[1730761980709,4.939,2404.3,2403.9,0.24110222]
[1730761980926,1.74446428,2404.1,2403.8,4.15992]
[1730761981424,1.74446428,2404.1,2403.4,0.06242408]
[1730761981425,0.7959,2403.9,2403.4,0.06242408]
[1730761981568,0.7959,2403.9,2403.6,4.16039]
[1730761981569,1.74445451,2403.8,2403.6,4.16039]
[1730761981905,0.13689989,2403.7,2403.6,4.16039]
[1730761982116,0.13689989,2403.7,2403.5,4.16059]
[1730761982292,1.74445451,2403.8,2403.5,4.16059]
[1730761982496,0.13689989,2403.6,2403.5,4.16059]
[1730761982809,0.13689989,2403.6,2403.2,0.8212]
[1730761982810,1.74445451,2403.8,2403.2,8.32201]
[1730761983035,0.13689989,2403.6,2403.3,4.16092]
[1730761983318,0.60899338,2403.7,2403.3,4.16092]
[1730761983499,0.47209349,2403.7,2403.3,4.16092]
[1730761983807,0.13689989,2403.6,2403.4,4.16076]
[1730761984012,0.13689989,2403.6,2403.4,8.32144]
[1730761984312,1.74445451,2403.8,2403.4,4.16068]
[1730761984475,0.13689989,2403.5,2403.4,4.16068]
[1730761984813,6.792623,2403.8,2403.4,4.16068]
[1730761985283,0.13689989,2403.7,2403.4,4.16068]
[1730761985775,6.792623,2403.8,2403.4,4.16068]
[1730761985976,0.13689989,2403.6,2403.4,4.16068]
[1730761986203,4.16009,2403.8,2403.4,4.16068]
[1730761986403,0.13689989,2403.5,2403.4,4.16068]
[1730761986608,4.16009,2403.8,2403.2,4.16096]
[1730761986916,2.54035451,2403.9,2403.0,4.16135]
[1730761986917,0.775,2403.4,2403.0,4.16135]
[1730761987229,0.775,2403.4,2403.1,4.16128]
[1730761987588,0.136618,2403.3,2403.1,4.16128]
[1730761988305,0.136618,2403.3,2403.2,4.16111]